bitfinex/quotes_BTCUSD_20240820
["timestamp","ask_amount","ask_price","bid_price","bid_amount"]
[1724156954626,0.139901,60816.0,60815.0,0.422387]
[1724156954999,0.139901,60816.0,60815.0,0.159295]
[1724156955210,0.139901,60816.0,60815.0,0.028]
[1724156955411,0.0829,60814.0,60805.0,0.0009075]
[1724156955610,0.1405,60809.0,60808.0,0.394684]
[1724156955967,0.1405,60809.0,60808.0,0.657807]
[1724156956290,0.1405,60809.0,60808.0,0.394684]
[1724156956903,0.1405,60809.0,60808.0,0.395684]
[1724156957570,0.1405,60809.0,60808.0,0.131561]
[1724156959364,0.1407,60808.0,60807.0,0.131563]
[1724156959791,0.0608,60807.0,60805.0,0.1324745]
[1724156959997,0.0608,60807.0,60805.0,0.0009075]
[1724156959998,0.1407,60806.0,60805.0,0.0009075]
[1724156960441,0.1417,60806.0,60805.0,0.0009075]
[1724156960617,0.1407,60806.0,60805.0,0.0009075]
[1724156960768,0.1417,60806.0,60805.0,0.0009075]
[1724156960968,0.1437,60806.0,60805.0,0.0009075]
[1724156961258,0.1407,60806.0,60805.0,0.1324755]
[1724156961436,0.1437,60806.0,60805.0,0.0009075]
[1724156962503,0.1407,60806.0,60805.0,0.0009075]
[1724156962704,0.1427,60806.0,60805.0,0.1324755]
[1724156962966,0.1407,60806.0,60805.0,0.1324755]
[1724156963361,0.1477,60806.0,60805.0,0.1324755]
[1724156963797,0.1517,60806.0,60805.0,0.3956115]
[1724156963976,0.1517,60806.0,60805.0,0.6587475]
[1724156964750,0.1517,60806.0,60805.0,0.9218835]
[1724156970299,0.1517,60806.0,60805.0,0.6587475]
[1724156971468,0.1517,60806.0,60805.0,0.9218835]
[1724156972293,0.0909,60806.0,60805.0,0.9218835]
[1724156972468,0.011,60806.0,60805.0,1.1850195]
[1724156972938,0.011,60806.0,60805.0,1.2850195]
[1724156973166,0.011,60806.0,60805.0,1.46957605]
[1724156973580,0.011,60806.0,60805.0,1.47798103]
[1724156973817,0.007,60806.0,60805.0,1.47798103]
[1724156974059,0.007,60806.0,60805.0,1.45742746]
[1724156974269,0.002,60806.0,60805.0,1.47796582]
[1724156974483,0.002,60806.0,60805.0,1.48596582]
[1724156974484,0.003,60806.0,60805.0,1.48596582]
[1724156975366,0.003,60806.0,60805.0,1.52217287]
[1724156975805,0.001,60806.0,60805.0,1.52217287]
[1724156976596,0.002,60806.0,60805.0,1.53317287]
[1724156977983,0.002,60806.0,60805.0,1.51263446]
[1724156978183,0.002,60806.0,60805.0,1.53317058]
[1724156981600,0.002,60806.0,60805.0,1.49696358]
[1724156981799,0.002,60806.0,60805.0,1.53317097]
[1724156982023,0.002,60806.0,60805.0,1.47642746]
[1724156982237,0.002,60806.0,60805.0,1.53317098]
[1724156983211,0.0814,60806.0,60805.0,1.53317098]
[1724156983578,0.1475,60806.0,60805.0,1.369168]
[1724156983697,0.1475,60806.0,60805.0,1.33296039]
[1724156984118,0.14730208,60806.0,60805.0,1.33296039]
[1724156985031,0.14730208,60806.0,60805.0,1.06141941]
[1724156985759,0.14730208,60806.0,60805.0,1.06142639]
[1724156986995,0.14730208,60806.0,60805.0,1.0408835]
[1724156987200,0.14730208,60806.0,60805.0,1.06142658]
[1724156991764,0.14630208,60806.0,60805.0,1.05042658]
[1724156991972,0.14730208,60806.0,60805.0,1.05642658]
[1724156992525,0.14730208,60806.0,60805.0,1.04842658]
[1724156992526,0.1465,60806.0,60805.0,1.04842658]
[1724156993415,0.1465,60806.0,60805.0,0.68529058]
[1724156993662,0.1465,60806.0,60805.0,0.6677475]
[1724156995351,0.1455,60806.0,60805.0,0.6617475]
[1724156997522,0.1455,60806.0,60805.0,0.6822943]
[1724157000992,0.1455,60806.0,60805.0,0.3986115]
[1724157000993,0.2577,60806.0,60805.0,0.3986115]
[1724157001347,0.2577,60806.0,60805.0,0.1354755]
[1724157001549,0.2577,60806.0,60805.0,0.1324755]
[1724157002588,0.1455,60806.0,60805.0,0.1324755]
[1724157003117,0.1455,60806.0,60805.0,0.0009075]
[1724157003408,0.1545,60806.0,60805.0,0.0019075]
[1724157003962,0.1545,60806.0,60805.0,0.1334755]
[1724157004188,0.1545,60806.0,60805.0,0.3966115]
[1724157004443,0.1545,60806.0,60805.0,0.6597475]
[1724157005180,0.1545,60806.0,60805.0,0.9228835]
[1724157005377,0.0884,60806.0,60805.0,1.05559507]
[1724157006581,0.0884,60806.0,60805.0,0.94339507]
[1724157007184,0.089226,60806.0,60805.0,0.94339507]
[1724157008010,0.154826,60806.0,60805.0,0.41712307]
[1724157008220,0.154826,60806.0,60805.0,0.3966115]
[1724157009827,0.154826,60806.0,60805.0,0.6597475]
[1724157014247,0.154826,60806.0,60805.0,0.3966115]
[1724157014744,0.154826,60806.0,60805.0,0.0019075]
[1724157017367,0.154826,60806.0,60805.0,0.1334755]
[1724157017866,0.154826,60806.0,60805.0,0.68027272]
[1724157022617,0.154826,60806.0,60805.0,0.68029251]
[1724157022847,0.154826,60806.0,60805.0,0.3966115]
[1724157023070,0.154826,60806.0,60805.0,0.1334755]
[1724157023689,0.154826,60806.0,60805.0,0.3966115]
[1724157026593,0.154826,60806.0,60805.0,0.68028786]
[1724157026915,0.154826,60806.0,60805.0,0.68028959]
[1724157029694,0.154826,60806.0,60805.0,0.68028981]
[1724157030325,0.089226,60806.0,60805.0,0.94342581]
[1724157030527,0.009826,60806.0,60805.0,0.94342581]
[1724157031890,0.085426,60806.0,60805.0,0.68028981]
[1724157032263,0.149726,60806.0,60805.0,0.15401781]
[1724157032437,0.149726,60806.0,60805.0,0.02244981]
[1724157033233,0.149726,60806.0,60805.0,0.15401781]
[1724157033989,0.149726,60806.0,60805.0,0.02244981]
[1724157034954,0.149726,60806.0,60805.0,0.15401781]
[1724157037672,0.149726,60806.0,60805.0,0.1334755]
[1724157037985,0.149726,60806.0,60805.0,0.15400913]
[1724157038173,0.149726,60806.0,60805.0,0.41714513]
[1724157038376,0.149726,60806.0,60805.0,0.41714521]
[1724157040943,0.260426,60806.0,60805.0,0.41714521]
[1724157041916,0.260426,60806.0,60805.0,0.3966115]
[1724157042116,0.260426,60806.0,60805.0,0.4171456]
[1724157043344,0.260426,60806.0,60805.0,0.6802816]
[1724157045650,0.196126,60806.0,60805.0,0.9434176]
[1724157045858,0.120526,60806.0,60805.0,0.9434176]
[1724157046266,0.120526,60806.0,60805.0,0.9228835]
[1724157046467,0.120526,60806.0,60805.0,0.94341636]
[1724157048608,0.12032806,60806.0,60805.0,0.94341636]
[1724157050442,0.12032806,60806.0,60805.0,1.20655236]
[1724157050636,0.12032806,60806.0,60805.0,1.1860195]
[1724157050808,0.12032806,60806.0,60805.0,1.81427915]
[1724157051009,0.12032806,60806.0,60805.0,2.06460128]
[1724157051220,0.12032806,60806.0,60805.0,1.94230019]
[1724157051419,0.12032806,60806.0,60805.0,2.73230019]
[1724157051859,0.11732806,60806.0,60805.0,2.85443869]
[1724157052471,0.11732806,60806.0,60805.0,2.887064]
[1724157053348,0.11732806,60806.0,60805.0,2.82997962]
[1724157054410,0.11732806,60806.0,60805.0,2.73230019]
[1724157054610,0.11732806,60806.0,60805.0,2.80551374]
[1724157055276,0.11832806,60806.0,60805.0,2.81551374]
[1724157055478,0.11832806,60806.0,60805.0,1.66097605]
[1724157055685,0.11832806,60806.0,60805.0,1.64007605]
[1724157056123,0.11832806,60806.0,60805.0,1.42597307]
[1724157056247,0.19812806,60806.0,60805.0,1.31653852]
[1724157057951,0.192326,60806.0,60805.0,1.31553852]
[1724157058562,0.192326,60806.0,60805.0,1.2950195]
[1724157058714,0.192326,60806.0,60805.0,1.31555424]
[1724157059113,0.193326,60806.0,60805.0,1.32355424]
[1724157060104,0.194026,60806.0,60805.0,1.06041824]
[1724157060415,0.194026,60806.0,60805.0,1.0398835]
[1724157060816,0.193026,60806.0,60805.0,1.0318835]
[1724157061016,0.192026,60806.0,60805.0,1.0218835]
[1724157061587,0.112526,60806.0,60805.0,1.0298835]
[1724157061800,0.112526,60806.0,60805.0,1.1421835]
[1724157062006,0.111526,60806.0,60805.0,1.1341835]
[1724157062613,0.113526,60806.0,60805.0,1.1461835]
[1724157062906,0.112526,60806.0,60805.0,0.6647475]
[1724157063110,0.190626,60806.0,60805.0,0.6647475]
[1724157063348,0.190626,60806.0,60805.0,0.6677475]
[1724157063567,0.112526,60806.0,60805.0,0.6677475]
[1724157063771,0.112526,60806.0,60805.0,0.9308835]
[1724157063975,0.112526,60806.0,60805.0,0.9248835]
[1724157063976,0.111526,60806.0,60805.0,0.9248835]
[1724157064181,0.111526,60806.0,60805.0,0.9238835]
[1724157064401,0.113526,60806.0,60805.0,0.9238835]
[1724157064822,0.113526,60806.0,60805.0,0.9218835]
[1724157065258,0.113526,60806.0,60805.0,0.9238835]
[1724157065879,0.111526,60806.0,60805.0,0.9238835]
[1724157066082,0.112526,60806.0,60805.0,0.9238835]
[1724157067142,0.112526,60806.0,60805.0,0.93241271]
[1724157068906,0.112526,60806.0,60805.0,1.35955169]
[1724157069121,0.112526,60806.0,60805.0,1.45955169]
[1724157070160,0.112526,60806.0,60805.0,1.45755169]
[1724157070370,0.111526,60806.0,60805.0,1.45755169]
[1724157070570,0.111526,60806.0,60805.0,1.46255169]
[1724157070768,0.111526,60806.0,60805.0,1.46455169]
[1724157071047,0.111526,60806.0,60805.0,1.48545169]
[1724157071500,0.111526,60806.0,60805.0,1.52166385]
[1724157072817,0.111526,60806.0,60805.0,1.48545169]
[1724157075469,0.111526,60806.0,60805.0,1.20141569]
[1724157075670,0.253826,60806.0,60805.0,1.03741271]
[1724157078349,0.253826,60806.0,60805.0,1.0288835]
[1724157079484,0.253826,60806.0,60805.0,0.7657475]
[1724157081697,0.253826,60806.0,60805.0,1.0288835]
[1724157082310,0.253826,60806.0,60805.0,0.7657475]
[1724157082727,0.253826,60806.0,60805.0,1.0288835]
[1724157085087,0.111526,60806.0,60805.0,1.24298648]
[1724157085295,0.111526,60806.0,60805.0,2.12919873]
[1724157085710,0.111526,60806.0,60805.0,2.39233473]
[1724157086116,0.111526,60806.0,60805.0,2.83013312]
[1724157086545,0.111526,60806.0,60805.0,2.85455735]
[1724157087529,0.111526,60806.0,60805.0,2.75686044]
[1724157087753,0.111526,60806.0,60805.0,2.72064819]
[1724157087937,0.111526,60806.0,60805.0,2.75685529]
[1724157088176,0.111526,60806.0,60805.0,2.85451566]
[1724157088581,0.111526,60806.0,60805.0,2.75685529]
[1724157088806,0.111526,60806.0,60805.0,2.72064819]
[1724157088985,0.111526,60806.0,60805.0,2.75685534]
[1724157089243,0.111526,60806.0,60805.0,2.85452344]
[1724157089440,0.111526,60806.0,60805.0,2.75685534]
[1724157092491,0.111526,60806.0,60805.0,2.87897648]
[1724157094454,0.111526,60806.0,60805.0,2.87896212]
[1724157094860,0.111526,60806.0,60805.0,2.82886212]
[1724157095066,0.111526,60806.0,60805.0,2.8288698]
[1724157096735,0.111526,60806.0,60805.0,2.8238698]
[1724157097101,0.112526,60806.0,60805.0,2.8318698]
[1724157097306,0.113526,60806.0,60805.0,2.8398698]
[1724157098709,0.113526,60806.0,60805.0,2.71774411]
[1724157099181,0.113526,60806.0,60805.0,2.71774322]
[1724157101363,0.113526,60806.0,60805.0,2.62774322]
[1724157101772,0.250626,60806.0,60805.0,2.74990124]
[1724157102185,0.113526,60806.0,60805.0,2.74990124]
[1724157102612,0.113526,60806.0,60805.0,2.62774322]
[1724157105230,0.113526,60806.0,60805.0,2.62774314]
[1724157107619,0.113526,60806.0,60805.0,2.6277431]
[1724157108835,0.113526,60806.0,60805.0,2.59153607]
[1724157109196,0.113526,60806.0,60805.0,2.62774314]
[1724157112611,0.000826,60812.0,60805.0,2.62774314]
[1724157112612,0.000826,60812.0,60811.0,1.448105]
[1724157112814,0.000826,60812.0,60811.0,2.90182864]
[1724157113019,0.000826,60812.0,60811.0,3.01412864]
[1724157113232,0.000826,60812.0,60811.0,3.01408597]
[1724157113931,0.001826,60812.0,60811.0,3.02508597]
[1724157114137,0.002826,60812.0,60811.0,3.03808597]
[1724157114335,0.000826,60812.0,60811.0,2.75097597]
[1724157114474,0.081626,60812.0,60811.0,2.75097597]
[1724157114677,0.082626,60812.0,60811.0,2.8372895]
[1724157114921,0.081626,60812.0,60811.0,2.45981858]
[1724157115097,0.081626,60812.0,60811.0,2.2958156]
[1724157115317,0.082626,60812.0,60811.0,2.12320207]
[1724157115519,0.082626,60812.0,60811.0,1.33320207]
[1724157115679,0.082626,60812.0,60811.0,1.34720207]
[1724157116292,0.082626,60812.0,60811.0,1.33320207]
[1724157116475,0.144726,60812.0,60811.0,1.33320207]
[1724157116675,0.144726,60812.0,60811.0,1.34420066]
[1724157116879,0.143726,60812.0,60811.0,1.33120066]
[1724157117103,0.143726,60812.0,60811.0,1.32020066]
[1724157117304,0.143726,60812.0,60811.0,1.33220066]
[1724157117505,0.143726,60812.0,60811.0,1.33320066]
[1724157117910,0.143726,60812.0,60811.0,1.35400332]
[1724157119851,0.143726,60812.0,60811.0,1.42731685]
[1724157120073,0.143726,60812.0,60811.0,1.64141983]
[1724157120074,0.000826,60812.0,60811.0,1.64141983]
[1724157120274,0.000826,60812.0,60811.0,2.19571507]
[1724157120444,0.000826,60812.0,60811.0,3.07788416]
[1724157120658,0.000826,60812.0,60811.0,3.0416785]
[1724157120812,0.000826,60812.0,60811.0,3.07788111]
[1724157121506,1e-06,60816.0,60815.0,1.183914]
[1724157121620,1e-06,60816.0,60815.0,2.32168789]
[1724157122026,1e-06,60816.0,60815.0,2.22401036]
[1724157122243,1e-06,60816.0,60815.0,3.31412985]
[1724157122451,1e-06,60816.0,60815.0,3.41178599]
[1724157122673,1e-06,60816.0,60815.0,3.31412985]
[1724157122879,1e-06,60816.0,60815.0,3.32312985]
[1724157123681,0.001001,60816.0,60815.0,3.33012769]
[1724157124321,0.001001,60816.0,60815.0,4.07012769]
[1724157125515,0.001001,60816.0,60815.0,3.70562892]
[1724157125715,1e-08,60816.0,60815.0,4.07007597]
[1724157127751,1e-08,60816.0,60815.0,4.07007551]
[1724157130352,1e-08,60816.0,60815.0,4.07006979]
[1724157132087,1e-08,60816.0,60815.0,4.72670005]
[1724157132511,1e-08,60816.0,60815.0,4.07006979]
[1724157134997,1e-08,60816.0,60815.0,4.07005032]
[1724157135921,1e-08,60816.0,60815.0,4.03385033]
[1724157136120,1e-08,60816.0,60815.0,4.07004818]
[1724157137228,0.00082501,60816.0,60815.0,4.07004818]
[1724157139600,0.00082501,60816.0,60815.0,4.07004722]
[1724157140177,0.00082501,60816.0,60815.0,4.07004716]
[1724157140772,0.0781,60822.0,60821.0,1.296101]
[1724157141002,0.0781,60822.0,60821.0,3.02759188]
[1724157141202,0.0781,60822.0,60821.0,3.06378967]
[1724157142669,0.0781,60822.0,60821.0,3.06578967]
[1724157142956,0.0781,60822.0,60821.0,3.06878967]
[1724157143360,0.0781,60822.0,60821.0,2.95648967]
[1724157143557,0.0781,60822.0,60821.0,3.06878967]
[1724157143805,0.0781,60822.0,60821.0,2.69342267]
[1724157144010,0.0781,60822.0,60821.0,2.80572267]
[1724157144209,0.0781,60822.0,60821.0,2.43930176]
[1724157144423,0.0781,60822.0,60821.0,1.96372192]
[1724157144629,0.0781,60822.0,60821.0,1.96872192]
[1724157144842,0.0781,60822.0,60821.0,1.65308415]
[1724157145083,0.0781,60822.0,60821.0,1.65308602]
[1724157145285,0.0781,60822.0,60821.0,1.60430176]
[1724157145491,0.0781,60822.0,60821.0,1.65308676]
[1724157145806,0.0781,60822.0,60821.0,1.65307918]
[1724157146583,0.0781,60822.0,60821.0,1.68646938]
[1724157146989,0.0781,60822.0,60821.0,1.66207548]
[1724157147198,0.0781,60822.0,60821.0,1.68646938]
[1724157147396,0.0781,60822.0,60821.0,1.61329938]
[1724157147975,0.0781,60822.0,60821.0,1.61330042]
[1724157148184,0.0781,60822.0,60821.0,1.66207837]
[1724157148946,0.0781,60822.0,60821.0,1.66208234]
[1724157149175,0.0781,60822.0,60821.0,1.66208235]
[1724157149900,0.078925,60822.0,60821.0,1.66208235]
[1724157150329,0.078925,60822.0,60821.0,1.61330042]
[1724157151386,0.078925,60822.0,60821.0,1.66209329]
[1724157151810,0.142025,60822.0,60821.0,1.12272331]
[1724157151993,0.142025,60822.0,60821.0,0.70186582]
[1724157152193,0.142025,60822.0,60821.0,0.665667]
[1724157152754,0.142025,60822.0,60821.0,0.660667]
[1724157152997,0.142025,60822.0,60821.0,0.657667]
[1724157154579,0.142025,60822.0,60821.0,0.920734]
[1724157154809,0.142025,60822.0,60821.0,1.08673698]
[1724157155013,0.142025,60822.0,60821.0,1.27175359]
[1724157155213,0.142025,60822.0,60821.0,1.26974022]
[1724157155442,0.142025,60822.0,60821.0,1.53280722]
[1724157155842,0.142025,60822.0,60821.0,1.4840028]
[1724157156179,0.142025,60822.0,60821.0,1.92464837]
[1724157156642,0.142025,60822.0,60821.0,1.13913946]
[1724157156785,0.142025,60822.0,60821.0,1.10294064]
[1724157156976,0.142025,60822.0,60821.0,1.06593374]
[1724157157181,0.142025,60822.0,60821.0,1.13914038]
[1724157157610,0.142025,60822.0,60821.0,1.029734]
[1724157158857,0.142025,60822.0,60821.0,1.023734]
[1724157159731,0.142025,60822.0,60821.0,1.022734]
[1724157160954,0.142025,60822.0,60821.0,0.659667]
[1724157161149,0.142025,60822.0,60821.0,0.131533]
[1724157161351,0.0659,60819.0,60815.0,0.0009075]
[1724157161555,0.1436,60819.0,60818.0,0.13154]
[1724157162160,0.003,60820.0,60817.0,0.131541]
[1724157162363,0.244657,60822.0,60815.0,0.0009075]
[1724157162364,0.1436,60819.0,60818.0,0.13154]
[1724157162955,0.1452,60817.0,60815.0,0.0009075]
[1724157163194,0.1432,60816.0,60815.0,0.1324535]
[1724157163399,0.1452,60816.0,60815.0,0.1324535]
[1724157164225,0.1422,60816.0,60815.0,0.1324535]
[1724157164443,0.1422,60816.0,60815.0,0.3965455]
[1724157166116,0.1422,60816.0,60815.0,0.3975455]
[1724157166523,0.1422,60816.0,60815.0,0.6606375]
[1724157168739,0.1422,60816.0,60815.0,0.9237295]
[1724157172821,0.14200211,60816.0,60815.0,0.9237295]
[1724157180046,0.000825,60822.0,60821.0,0.920734]
[1724157180289,0.000825,60822.0,60821.0,1.033034]
[1724157180684,0.000825,60822.0,60821.0,1.296101]
[1724157182549,0.000825,60822.0,60821.0,0.921734]
[1724157182761,0.141225,60822.0,60821.0,0.921734]
[1724157183394,0.141225,60822.0,60821.0,0.928734]
[1724157183523,0.141225,60822.0,60821.0,0.932734]
[1724157183732,0.141225,60822.0,60821.0,0.920734]
[1724157184129,0.141225,60822.0,60821.0,0.922734]
[1724157184615,0.141225,60822.0,60821.0,0.659667]
[1724157188862,0.141225,60822.0,60821.0,0.922734]
[1724157189525,0.141225,60822.0,60821.0,1.035034]
[1724157189948,0.141225,60822.0,60821.0,0.922734]
[1724157191089,0.141225,60822.0,60821.0,0.659667]
[1724157192342,0.141225,60822.0,60821.0,0.133533]
[1724157192549,0.30522798,60822.0,60821.0,0.002]
[1724157192899,0.69982098,60822.0,60821.0,0.002]
[1724157193097,0.29635898,60822.0,60818.0,0.131539]
[1724157193331,0.16400298,60821.0,60818.0,0.131539]
[1724157193503,0.1376,60819.0,60818.0,0.131539]
[1724157196025,0.1376,60819.0,60818.0,0.394619]
[1724157196433,0.1376,60819.0,60818.0,0.132539]
[1724157196789,0.1376,60819.0,60818.0,0.135539]
[1724157197795,0.30260298,60819.0,60818.0,0.004]
[1724157197954,0.98728998,60819.0,60818.0,0.004]
[1724157198372,0.98728998,60819.0,60818.0,0.045106]
[1724157198373,1.09016908,60819.0,60818.0,0.045106]
[1724157198769,1.09016908,60819.0,60818.0,0.042106]
[1724157198970,1.22782849,60819.0,60818.0,0.042106]
[1724157199355,1.22782849,60819.0,60818.0,0.041106]
[1724157199555,1.22782849,60819.0,60818.0,0.042106]
[1724157199992,1.22782849,60819.0,60818.0,0.041106]
[1724157200201,1.22782849,60819.0,60818.0,0.042106]
[1724157200342,1.22782849,60819.0,60818.0,0.043106]
[1724157200747,1.22782849,60819.0,60818.0,0.042106]
[1724157200948,1.22782849,60819.0,60818.0,0.043106]
[1724157203208,1.09016908,60819.0,60818.0,0.043106]
[1724157203578,1.35324408,60819.0,60818.0,0.043106]
[1724157204896,1.34324408,60819.0,60818.0,0.043106]
[1724157205100,1.23636498,60819.0,60818.0,0.043106]
[1724157205456,1.23836498,60819.0,60818.0,0.043106]
[1724157205799,0.97328998,60819.0,60818.0,0.043106]
[1724157207966,0.97528998,60819.0,60818.0,0.043106]
[1724157210010,0.97728998,60819.0,60818.0,0.043106]
[1724157211435,0.97811598,60819.0,60818.0,0.043106]
[1724157213029,0.97611598,60819.0,60818.0,0.043106]
[1724157214320,0.97811598,60819.0,60818.0,0.043106]
[1724157214529,1.09041598,60819.0,60818.0,0.043106]
[1724157215177,1.22634638,60819.0,60818.0,0.043106]
[1724157218666,1.09041598,60819.0,60818.0,0.043106]
[1724157221071,1.35349098,60819.0,60818.0,0.043106]
[1724157221278,1.61656598,60819.0,60818.0,0.043106]
[1724157221471,1.61656598,60819.0,60818.0,0.02963537]
[1724157221472,2.1394591,60819.0,60818.0,0.02963537]
[1724157221671,2.0326549,60819.0,60818.0,0.02963537]
[1724157221895,2.0326549,60819.0,60818.0,2.14e-06]
[1724157221896,2.05725614,60819.0,60818.0,2.14e-06]
[1724157222104,1.336578,60817.0,60816.0,0.0009086]
[1724157222285,1.6264741,60817.0,60816.0,0.0009086]
[1724157222503,1.79045288,60817.0,60816.0,0.0009086]
[1724157223771,1.79045288,60817.0,60816.0,0.0019086]
[1724157226306,1.79245288,60817.0,60816.0,0.0029086]
[1724157232988,1.7407741,60817.0,60816.0,0.0029086]
[1724157233819,1.4766901,60817.0,60816.0,0.0029086]
[1724157234045,1.3653901,60817.0,60816.0,0.0029086]
[1724157234259,1.4776901,60817.0,60816.0,0.0029086]
[1724157236545,1.7407741,60817.0,60816.0,0.0029086]
[1724157236741,1.90475288,60817.0,60816.0,0.0029086]
[1724157236985,1.95392972,60817.0,60816.0,0.0029086]
[1724157238179,1.90475288,60817.0,60816.0,0.0029086]
[1724157239189,1.97851815,60817.0,60816.0,0.0029086]
[1724157240530,1.97861618,60817.0,60816.0,0.0029086]
[1724157242101,1.90475288,60817.0,60816.0,0.0029086]
[1724157242304,1.97863432,60817.0,60816.0,0.0029086]
[1724157242672,1.90475288,60817.0,60816.0,0.0029086]
[1724157243230,2.00323728,60817.0,60816.0,0.0029086]
[1724157244860,1.90475288,60817.0,60816.0,0.0029086]
[1724157245062,0.2834354,60816.0,60815.0,0.0009075]
[1724157245382,1.60047096,60816.0,60815.0,0.0009075]
[1724157245941,1.86355896,60816.0,60815.0,0.0009075]
[1724157246342,1.86455896,60816.0,60815.0,0.0019075]
[1724157246970,1.86555896,60816.0,60815.0,0.0029075]
[1724157250183,1.79166228,60816.0,60815.0,0.0026505]
[1724157251542,1.86556703,60816.0,60815.0,0.0026505]
[1724157252252,1.79166228,60816.0,60815.0,0.0026505]
[1724157252908,1.86556913,60816.0,60815.0,0.0026505]
[1724157253306,1.79166228,60816.0,60815.0,0.0026505]
[1724157253950,1.86557097,60816.0,60815.0,0.0026505]
[1724157254133,1.79166228,60816.0,60815.0,0.0026505]
[1724157254434,1.86557097,60816.0,60815.0,0.0026505]
[1724157254909,1.84093732,60816.0,60815.0,0.0026505]
[1724157255868,1.86557097,60816.0,60815.0,0.0026505]
[1724157256507,1.79166228,60816.0,60815.0,0.0026505]
[1724157257208,1.90396228,60816.0,60815.0,0.0026505]
[1724157257630,2.00250733,60816.0,60815.0,0.0026505]
[1724157257836,1.90396228,60816.0,60815.0,0.0026505]
[1724157258044,2.00253635,60816.0,60815.0,0.0026505]
[1724157258266,2.02714359,60816.0,60815.0,0.0026505]
[1724157261121,1.90396228,60816.0,60815.0,0.0026505]
[1724157266371,1.52857428,60816.0,60815.0,0.0026505]
[1724157266576,1.64087428,60816.0,60815.0,0.0026505]
[1724157269913,1.90396228,60816.0,60815.0,0.0026505]
[1724157272667,1.90478828,60816.0,60815.0,0.0026505]
[1724157273858,0.136565,60806.0,60805.0,0.0009075]
[1724157274033,1.7268231,60806.0,60805.0,0.0009075]
[1724157274268,1.96122167,60806.0,60805.0,0.0009075]
[1724157274378,2.0992161,60806.0,60805.0,0.0009075]
[1724157274980,2.1012161,60806.0,60805.0,0.0019075]
[1724157275183,2.41419706,60806.0,60805.0,0.0019075]
[1724157275392,2.00206388,60806.0,60805.0,0.0019075]
[1724157275600,2.14806788,60806.0,60805.0,0.0009075]
[1724157275808,2.14906788,60806.0,60805.0,0.0019075]
[1724157276015,1.88876388,60806.0,60805.0,0.0009075]
[1724157276419,2.00106388,60806.0,60805.0,0.0009075]
[1724157276669,2.12436088,60806.0,60805.0,0.0009075]
[1724157277246,2.00106388,60806.0,60805.0,0.0009075]
[1724157277604,1.68833288,60806.0,60805.0,0.0009075]
[1724157277761,1.60233288,60806.0,60805.0,0.0019075]
[1724157277965,1.60133288,60806.0,60805.0,0.0019075]
[1724157278163,1.57333288,60806.0,60805.0,0.0009075]
[1724157278371,1.60133288,60806.0,60805.0,0.0019075]
[1724157278571,1.48903288,60806.0,60805.0,0.0019075]
[1724157278729,1.47503288,60806.0,60805.0,0.0009075]
[1724157278933,1.46103288,60806.0,60805.0,0.0009075]
[1724157279142,1.48903288,60806.0,60805.0,0.0019075]
[1724157280025,1.56299354,60806.0,60805.0,0.0019075]
[1724157281023,1.56298789,60806.0,60805.0,0.0019075]
[1724157283047,1.48903288,60806.0,60805.0,0.0019075]
[1724157285460,1.55533288,60806.0,60805.0,0.0019075]
[1724157288667,1.62928789,60806.0,60805.0,0.0019075]
[1724157289116,1.91707056,60806.0,60805.0,0.0019075]
[1724157289932,1.91707056,60806.0,60805.0,1.4e-07]
[1724157289933,2.39176388,60806.0,60805.0,1.4e-07]
[1724157290155,2.09176388,60806.0,60805.0,1.4e-07]
[1724157293626,2.45367488,60806.0,60805.0,1.4e-07]
[1724157294062,2.19054388,60806.0,60805.0,1.4e-07]
[1724157295145,2.47134388,60806.0,60805.0,1.4e-07]
[1724157295368,2.59450228,60806.0,60805.0,1.4e-07]
[1724157295540,2.47134388,60806.0,60805.0,1.4e-07]
[1724157297386,2.47134388,60806.0,60805.0,0.00090874]
[1724157298493,2.30294388,60806.0,60805.0,0.00090874]
[1724157300238,2.42608679,60806.0,60805.0,0.00090874]
[1724157300893,2.30294388,60806.0,60805.0,0.00090874]
[1724157301261,2.20416388,60806.0,60805.0,0.00090874]
[1724157302613,2.03086388,60806.0,60805.0,0.00090874]
[1724157303020,1.8662455,60806.0,60805.0,0.00090874]
[1724157303223,1.84161833,60806.0,60805.0,0.00090874]
[1724157303634,1.70143288,60806.0,60805.0,0.00090874]
[1724157303831,1.64648868,60806.0,60805.0,0.00090874]
[1724157305043,1.66948868,60806.0,60805.0,0.00090874]
[1724157306656,0.19200298,60806.0,60805.0,0.08210874]
[1724157306857,0.32356798,60806.0,60805.0,0.08210874]
[1724157307056,0.85082998,60806.0,60805.0,0.08210874]
[1724157307596,0.85282998,60806.0,60805.0,0.08210874]
[1724157307800,0.94372885,60806.0,60805.0,0.06120874]
[1724157308037,1.06664675,60806.0,60805.0,0.06120874]
[1724157308229,1.07564675,60806.0,60805.0,0.0612086]
[1724157308550,1.08964675,60806.0,60805.0,0.0622086]
[1724157308757,1.08664675,60806.0,60805.0,0.0622086]
[1724157309167,1.10064675,60806.0,60805.0,0.0632086]
[1724157310057,1.09864675,60806.0,60805.0,0.0632086]
[1724157310246,1.09947275,60806.0,60805.0,0.0632086]
[1724157310637,1.08647275,60806.0,60805.0,0.0622086]
[1724157310822,0.69942385,60806.0,60805.0,0.0622086]
[1724157311027,0.56069285,60806.0,60805.0,0.0632086]
[1724157311486,0.56069285,60806.0,60805.0,0.0841086]
[1724157312291,0.45779398,60806.0,60805.0,0.0841086]
[1724157312502,0.21382898,60806.0,60805.0,0.0841086]
[1724157312651,0.19082898,60806.0,60805.0,0.0841086]
[1724157315282,0.19082898,60806.0,60805.0,0.2156766]
[1724157316615,0.19082898,60806.0,60805.0,0.0841086]
[1724157318015,0.68500988,60806.0,60805.0,0.0632086]
[1724157318216,0.68500988,60806.0,60805.0,0.0029086]
[1724157318217,0.70800988,60806.0,60805.0,0.0029086]
[1724157318697,0.97114088,60806.0,60805.0,0.0029086]
[1724157319033,1.11244088,60806.0,60805.0,0.0029086]
[1724157319230,1.37557188,60806.0,60805.0,0.0029086]
[1724157320495,1.37157188,60806.0,60805.0,0.0029086]
[1724157321881,1.37557188,60806.0,60805.0,0.0029086]
[1724157324446,1.23227188,60806.0,60805.0,0.0029086]
[1724157324637,0.96814088,60806.0,60805.0,0.0632086]
[1724157325092,0.96814088,60806.0,60805.0,0.0029086]
[1724157325298,0.96914088,60806.0,60805.0,0.0029086]
[1724157325503,0.96814088,60806.0,60805.0,0.0029086]
[1724157325680,0.026826,60806.0,60805.0,0.0841086]